fUST/lending_fUST_20250923
["ID","MTS","AMOUNT","RATE_DAILY","PERIOD"]
[387179292,1758611432958,-500.0,0.00019177,2]
[387179293,1758611432968,-500.0,0.00019177,2]
[387179294,1758611432977,-500.0,0.00019177,2]
[387179295,1758611432986,-500.0,0.00019177,2]
[387179296,1758611432996,-557.93648159,0.00019177,2]
[387179297,1758611433006,-353.0899627,0.00019177,2]
[387179298,1758611433016,-500.0,0.00019177,2]
[387179299,1758611433030,-500.0,0.00019177,2]
[387179300,1758611433040,-500.0,0.00019177,2]
[387179301,1758611433051,-500.0,0.00019177,2]
[387179302,1758611433061,-500.0,0.00019177,2]
[387179303,1758611433074,-500.0,0.00019177,2]
[387179304,1758611433085,-500.0,0.00019177,2]
[387179305,1758611433096,-500.0,0.00019177,2]
[387179306,1758611433107,-500.0,0.00019177,2]
[387179307,1758611433117,-500.0,0.00019177,2]
[387179308,1758611433126,-587.04538948,0.00019177,2]
[387179309,1758611433136,-500.0,0.00019177,2]
[387179310,1758611433146,-500.0,0.00019177,2]
[387179311,1758611433155,-500.0,0.00019177,2]
[387179312,1758611433165,-500.0,0.00019177,2]
[387179313,1758611433176,-400.0,0.00019177,2]
[387179314,1758611433186,-166.27881145,0.00019178,2]
[387179315,1758611433196,-528.22258633,0.00019178,2]
[387179316,1758611433206,-480.0,0.00019178,2]
[387179317,1758611433216,-480.0,0.00019178,2]
[387179318,1758611433225,-480.0,0.00019178,2]
[387179319,1758611433235,-480.0,0.00019178,2]
[387179320,1758611433245,-480.0,0.00019178,2]
[387179322,1758611433255,-412.84167501,0.00019178,2]
[387179324,1758611433265,-480.0,0.00019178,2]
[387179325,1758611433275,-481.9797365,0.00019178,2]
[387179328,1758611433286,-480.0,0.00019178,2]
[387179329,1758611433296,-480.0,0.00019178,2]
[387179331,1758611433305,-486.99578139,0.00019178,2]
[387179333,1758611433315,-480.0,0.00019178,2]
[387179335,1758611433325,-483.90562809,0.00019178,2]
[387179337,1758611433334,-480.0,0.00019178,2]
[387179339,1758611433343,-480.0,0.00019178,2]
[387179341,1758611433353,-480.0,0.00019178,2]
[387179343,1758611433362,-480.0,0.00019178,2]
[387179345,1758611433372,-421.34813249,0.00019178,2]
[387179347,1758611433381,-480.0,0.00019178,2]
[387179349,1758611433390,-480.0,0.00019178,2]
[387179350,1758611433400,-363.69619057,0.00019178,2]
[387179354,1758611433436,-116.30380943,0.00019178,2]
[387179356,1758611433446,-480.0,0.00019178,2]
[387179358,1758611433455,-480.0,0.00019178,2]
[387179360,1758611433465,-480.0,0.00019178,2]
[387179361,1758611433474,-480.0,0.00019178,2]
[387179364,1758611433483,-465.99186533,0.00019178,2]
[387179366,1758611433493,-429.79481356,0.00019178,2]
[387179367,1758611433502,-480.6151473,0.00019178,2]
[387179369,1758611433512,-480.0,0.00019178,2]
[387179371,1758611433521,-299.67444357,0.00019178,2]
[387179373,1758611433531,-480.0,0.00019178,2]
[387179376,1758611433542,-480.0,0.00019178,2]
[387179378,1758611433552,-480.0,0.00019178,2]
[387179380,1758611433561,-480.0,0.00019178,2]
[387179382,1758611433572,-484.84053282,0.00019178,2]
[387179384,1758611433582,-184.56428422,0.00019178,2]
[387179386,1758611433591,-480.0,0.00019178,2]
[387179388,1758611433602,-480.0,0.00019178,2]
[387179390,1758611433611,-549.00837536,0.00019178,2]
[387179392,1758611433622,-277.05452899,0.00019178,2]
[387179394,1758611433631,-483.37907473,0.00019178,2]
[387179396,1758611433641,-480.0,0.00019178,2]
[387179398,1758611433650,-480.0,0.00019178,2]
[387179400,1758611433661,-480.0,0.00019178,2]
[387179402,1758611433673,-480.0,0.00019178,2]
[387179404,1758611433686,-480.0,0.00019178,2]
[387179406,1758611433696,-480.0,0.00019178,2]
[387179408,1758611433705,-480.0,0.00019178,2]
[387179410,1758611433715,-482.51723247,0.00019178,2]
[387179412,1758611433725,-480.0,0.00019178,2]
[387179414,1758611433735,-480.0,0.00019178,2]
[387179416,1758611433745,-480.0,0.00019178,2]
[387179418,1758611433755,-480.0,0.00019178,2]
[387179420,1758611433766,-480.0,0.00019178,2]
[387179422,1758611433777,-508.1450193,0.00019178,2]
[387179424,1758611433787,-480.0,0.00019178,2]
[387179426,1758611433798,-480.0,0.00019178,2]
[387179428,1758611433807,-480.0,0.00019178,2]
[387179430,1758611433818,-485.0715407,0.00019178,2]
[387179432,1758611433828,-480.0,0.00019178,2]
[387179434,1758611433839,-480.0,0.00019178,2]
[387179436,1758611433850,-480.0,0.00019178,2]
[387179438,1758611433862,-480.0,0.00019178,2]
[387179440,1758611433872,-481.5222747,0.00019178,2]
[387179441,1758611433882,-480.0,0.00019178,2]
[387179442,1758611433892,-480.0,0.00019178,2]
[387179444,1758611433903,-485.29953565,0.00019178,2]
[387179446,1758611433914,-480.0,0.00019178,2]
[387179447,1758611433925,-480.0,0.00019178,2]
[387179449,1758611433935,-480.0,0.00019178,2]
[387179450,1758611433946,-480.0,0.00019178,2]
[387179451,1758611433957,-480.0,0.00019178,2]
[387179452,1758611433967,-480.0,0.00019178,2]
[387179453,1758611433978,-501.91644137,0.00019178,2]
[387179454,1758611433988,-997.68,0.00019178,2]
[387179455,1758611433998,-997.68,0.00019178,2]
[387179456,1758611434008,-480.0,0.00019178,2]
[387179457,1758611434019,-480.0,0.00019178,2]
[387179458,1758611434034,-480.0,0.00019178,2]
[387179459,1758611434044,-480.0,0.00019178,2]
[387179460,1758611434055,-151.0,0.00019178,2]
[387179461,1758611434065,-495.38730665,0.00019178,2]
[387179462,1758611434076,-165.717324,0.00019178,2]
[387179463,1758611434086,-151.0,0.00019178,2]
[387179464,1758611434096,-165.717324,0.00019178,2]
[387179465,1758611434106,-151.0,0.00019178,2]
[387179466,1758611434117,-513.56615981,0.00019178,2]
[387179467,1758611434127,-157.00208,0.00019178,2]
[387179468,1758611434137,-165.717324,0.00019178,2]
[387179469,1758611434147,-165.717324,0.00019178,2]
[387179470,1758611434157,-480.0,0.00019178,2]
[387179471,1758611434167,-486.388033,0.00019178,2]
[387179472,1758611434177,-500.67,0.00019178,2]
[387179473,1758611434187,-487.68449945,0.00019178,2]
[387179474,1758611434197,-480.0,0.00019178,2]
[387179475,1758611434207,-216.89607451,0.00019178,2]
[387179476,1758611434217,-480.0,0.00019178,2]
[387179477,1758611434227,-480.0,0.00019178,2]
[387179478,1758611434237,-480.0,0.00019178,2]
[387179479,1758611434248,-480.0,0.00019178,2]
[387179480,1758611434340,-489.17706307,0.00019178,2]
[387179481,1758611434350,-151.0,0.00019178,2]
[387179482,1758611434360,-480.0,0.00019178,2]
[387179483,1758611434370,-151.0,0.00019178,2]
[387179484,1758611434381,-480.0,0.00019178,2]
[387179485,1758611434391,-480.0,0.00019178,2]
[387179486,1758611434400,-480.0,0.00019178,2]
[387179487,1758611434410,-151.0,0.00019178,2]
[387179488,1758611434419,-267.189764,0.00019178,2]
[387179489,1758611434429,-480.0,0.00019178,2]
[387179490,1758611434439,-480.0,0.00019178,2]
[387179491,1758611434449,-308.29825417,0.00019178,2]
[387179492,1758611434458,-480.0,0.00019178,2]
[387179493,1758611434468,-481.20987174,0.00019178,2]
[387179494,1758611434477,-151.0,0.00019178,2]
[387179495,1758611434487,-151.0,0.00019178,2]
[387179496,1758611434496,-480.0,0.00019178,2]
[387179497,1758611434506,-151.0,0.00019178,2]
[387179498,1758611434516,-151.0,0.00019178,2]
[387179499,1758611434526,-480.0,0.00019178,2]
[387179500,1758611434536,-151.0,0.00019178,2]
[387179501,1758611434546,-480.0,0.00019178,2]
[387179502,1758611434555,-151.0,0.00019178,2]
[387179503,1758611434565,-480.0,0.00019178,2]
[387179504,1758611434574,-480.0,0.00019178,2]
[387179505,1758611434583,-480.0,0.00019178,2]
[387179506,1758611434593,-480.0,0.00019178,2]
[387179507,1758611434602,-480.0,0.00019178,2]
[387179508,1758611434612,-151.0,0.00019178,2]
[387179509,1758611434622,-480.0,0.00019178,2]
[387179510,1758611434631,-151.0,0.00019178,2]
[387179511,1758611434641,-480.0,0.00019178,2]
[387179512,1758611434651,-480.0,0.00019178,2]
[387179513,1758611434661,-480.0,0.00019178,2]
[387179514,1758611434671,-480.0,0.00019178,2]
[387179515,1758611434680,-480.0,0.00019178,2]
[387179516,1758611434690,-480.0,0.00019178,2]
[387179517,1758611434700,-480.0,0.00019178,2]
[387179518,1758611434709,-480.0,0.00019178,2]
[387179519,1758611434719,-480.0,0.00019178,2]
[387179520,1758611434728,-480.0,0.00019178,2]
[387179521,1758611434738,-481.4315711,0.00019178,2]
[387179522,1758611434747,-480.0,0.00019178,2]
[387179523,1758611434757,-480.0,0.00019178,2]
[387179524,1758611434766,-480.0,0.00019178,2]
[387179525,1758611434776,-151.0,0.00019178,2]
[387179526,1758611434786,-480.0,0.00019178,2]
[387179527,1758611434796,-480.0,0.00019178,2]
[387179528,1758611434805,-301.121333,0.00019178,2]
[387179529,1758611434815,-480.0,0.00019178,2]
[387179530,1758611434825,-151.0,0.00019178,2]
[387179531,1758611434835,-481.53816112,0.00019178,2]
[387179532,1758611434845,-153.465462,0.00019178,2]
[387179533,1758611434854,-484.64950244,0.00019178,2]
[387179534,1758611434864,-480.0,0.00019178,2]
[387179535,1758611434873,-318.61903794,0.00019178,2]
[387179536,1758611434883,-480.0,0.00019178,2]
[387179537,1758611434892,-480.0,0.00019178,2]
[387179538,1758611434903,-480.0,0.00019178,2]
[387179539,1758611434913,-151.0,0.00019178,2]
[387179540,1758611434924,-480.0,0.00019178,2]
[387179541,1758611434934,-151.0,0.00019178,2]
[387179542,1758611434944,-480.0,0.00019178,2]
[387179543,1758611434954,-480.0,0.00019178,2]
[387179544,1758611434964,-480.0,0.00019178,2]
[387179545,1758611434974,-480.0,0.00019178,2]
[387179546,1758611434983,-480.0,0.00019178,2]
[387179547,1758611434993,-480.0,0.00019178,2]
[387179548,1758611435003,-480.0,0.00019178,2]
[387179549,1758611435012,-151.0,0.00019178,2]
[387179550,1758611435023,-480.0,0.00019178,2]
[387179551,1758611435036,-151.0,0.00019178,2]
[387179552,1758611435045,-480.0,0.00019178,2]
[387179553,1758611435055,-151.0,0.00019178,2]
[387179554,1758611435064,-151.0,0.00019178,2]
[387179555,1758611435074,-151.0,0.00019178,2]
[387179556,1758611435091,-151.846063,0.00019178,2]
[387179557,1758611435100,-151.0,0.00019178,2]
[387179558,1758611435110,-153.855666,0.00019178,2]
[387179559,1758611435120,-482.80591729,0.00019178,2]
[387179560,1758611435129,-480.0,0.00019178,2]
[387179561,1758611435138,-480.0,0.00019178,2]
[387179562,1758611435148,-480.0,0.00019178,2]
[387179563,1758611435157,-183.50493994,0.00019178,2]
[387179564,1758611435167,-483.0766973,0.00019178,2]
[387179565,1758611435177,-482.24775397,0.00019178,2]
[387179566,1758611435186,-480.0,0.00019178,2]
[387179567,1758611435195,-509.12736815,0.00019178,2]
[387179568,1758611435205,-480.0,0.00019178,2]
[387179569,1758611435214,-151.0,0.00019178,2]
[387179570,1758611435223,-151.0,0.00019178,2]
[387179571,1758611435233,-151.0,0.00019178,2]
[387179572,1758611435242,-151.0,0.00019178,2]
[387179573,1758611435251,-480.0,0.00019178,2]
[387179574,1758611435261,-151.0,0.00019178,2]
[387179575,1758611435270,-151.0,0.00019178,2]
[387179576,1758611435279,-480.0,0.00019178,2]
[387179577,1758611435289,-151.0,0.00019178,2]
[387179578,1758611435298,-151.0,0.00019178,2]
[387179579,1758611435307,-480.0,0.00019178,2]
[387179580,1758611435316,-151.0,0.00019178,2]
[387179581,1758611435326,-151.0,0.00019178,2]
[387179582,1758611435335,-152.159241,0.00019178,2]
[387179583,1758611435344,-480.0,0.00019178,2]
[387179584,1758611435353,-480.0,0.00019178,2]
[387179585,1758611435363,-480.0,0.00019178,2]
[387179586,1758611435372,-483.60312393,0.00019178,2]
[387179587,1758611435381,-483.97145563,0.00019178,2]
[387179588,1758611435390,-481.02069405,0.00019178,2]
[387179589,1758611435400,-482.26485334,0.00019178,2]
[387179590,1758611435410,-483.2633919,0.00019178,2]
[387179591,1758611435420,-481.81469833,0.00019178,2]
[387179592,1758611435431,-480.0,0.00019178,2]
[387179593,1758611435440,-480.0,0.00019178,2]
[387179594,1758611435450,-458.07196088,0.00019178,2]
[387179595,1758611435459,-480.0,0.00019178,2]
[387179596,1758611435469,-480.0,0.00019178,2]
[387179597,1758611435478,-480.0,0.00019178,2]
[387179598,1758611435488,-480.0,0.00019178,2]
[387179599,1758611435497,-489.28531959,0.00019178,2]
[387179600,1758611435506,-550.99233659,0.00019178,2]
[387179601,1758611435515,-480.0,0.00019178,2]
[387179602,1758611435524,-482.20539749,0.00019178,2]
[387179603,1758611435533,-480.0,0.00019178,2]
[387179604,1758611435543,-443.3184,0.00019178,2]
[387179605,1758611435552,-482.23361526,0.00019178,2]
[387179606,1758611435562,-260.01939877,0.00019178,2]
[387179607,1758611435571,-480.0,0.00019178,2]
[387179608,1758611435579,-480.0,0.00019178,2]
[387179609,1758611435589,-480.0,0.00019178,2]
[387179610,1758611435599,-439.53336479,0.00019178,2]
[387179611,1758611435608,-480.0,0.00019178,2]
[387179612,1758611435617,-480.0,0.00019178,2]
[387179613,1758611435626,-480.0,0.00019178,2]
[387179614,1758611435635,-484.70908242,0.00019178,2]
[387179615,1758611435645,-480.0,0.00019178,2]
[387179616,1758611435655,-480.0,0.00019178,2]
[387179617,1758611435664,-480.0,0.00019178,2]
[387179618,1758611435673,-485.58738706,0.00019178,2]
[387179619,1758611435682,-1294.14,0.00019178,2]
[387179620,1758611435692,-557.39,0.00019178,2]
[387179621,1758611435702,-482.05173563,0.00019178,2]
[387179622,1758611435711,-484.13557757,0.00019178,2]
[387179623,1758611435721,-480.0,0.00019178,2]
[387179624,1758611435731,-151.79725,0.00019178,2]
[387179625,1758611435740,-480.0,0.00019178,2]
[387179626,1758611435749,-487.57497323,0.00019178,2]
[387179627,1758611435759,-151.0,0.00019178,2]
[387179628,1758611435768,-151.466382,0.00019178,2]
[387179629,1758611435778,-480.0,0.00019178,2]
[387179630,1758611435788,-481.95567208,0.00019178,2]
[387179631,1758611435798,-480.0,0.00019178,2]
[387179632,1758611435808,-480.0,0.00019178,2]
[387179633,1758611435818,-480.0,0.00019178,2]
[387179634,1758611435828,-480.0,0.00019178,2]
[387179635,1758611435914,-652.71,0.00019178,2]
[387179636,1758611435924,-480.0,0.00019178,2]
[387179637,1758611435933,-480.0,0.00019178,2]
[387179638,1758611435943,-151.0,0.00019178,2]
[387179639,1758611435952,-483.28746185,0.00019178,2]
[387179640,1758611435962,-480.0,0.00019178,2]
[387179641,1758611435971,-429.230995,0.00019178,2]
[387179642,1758611435981,-429.230995,0.00019178,2]
[387179643,1758611435990,-480.0,0.00019178,2]
[387179644,1758611436000,-500.0,0.00019178,2]
[387179645,1758611436009,-429.230995,0.00019178,2]
[387179646,1758611436019,-591.3274203,0.00019178,2]
[387179647,1758611436031,-480.0,0.00019178,2]
[387179648,1758611436041,-429.230995,0.00019178,2]
[387179649,1758611436050,-480.0,0.00019178,2]
[387179650,1758611436060,-429.230995,0.00019178,2]
[387179651,1758611436069,-429.230995,0.00019178,2]
[387179652,1758611436078,-429.230995,0.00019178,2]
[387179653,1758611436088,-429.230995,0.00019178,2]
[387179654,1758611436097,-429.230995,0.00019178,2]
[387179655,1758611436107,-429.230995,0.00019178,2]
[387179656,1758611436117,-429.230995,0.00019178,2]
[387179657,1758611436126,-151.0,0.00019178,2]
[387179658,1758611436135,-429.230995,0.00019178,2]
[387179659,1758611436145,-480.0,0.00019178,2]
[387179660,1758611436154,-151.0,0.00019178,2]
[387179661,1758611436164,-480.0,0.00019178,2]
[387179662,1758611436174,-482.90908842,0.00019178,2]
[387179663,1758611436183,-151.0,0.00019178,2]
[387179664,1758611436193,-151.0,0.00019178,2]
[387179665,1758611436204,-480.0,0.00019178,2]
[387179666,1758611436214,-151.0,0.00019178,2]
[387179667,1758611436224,-480.0,0.00019178,2]
[387179668,1758611436233,-151.0,0.00019178,2]
[387179669,1758611436243,-151.0,0.00019178,2]
[387179670,1758611436252,-151.0,0.00019178,2]
[387179671,1758611436261,-232.646703,0.00019178,2]
[387179672,1758611436271,-151.0,0.00019178,2]
[387179673,1758611436280,-151.0,0.00019178,2]
[387179674,1758611436289,-151.0,0.00019178,2]
[387179675,1758611436298,-181.215276,0.00019178,2]
[387179676,1758611436307,-151.0,0.00019178,2]
[387179677,1758611436317,-181.215276,0.00019178,2]
[387179678,1758611436327,-151.0,0.00019178,2]
[387179679,1758611436336,-181.215276,0.00019178,2]
[387179680,1758611436345,-151.0,0.00019178,2]
[387179681,1758611436355,-480.0,0.00019178,2]
[387179682,1758611436364,-151.0,0.00019178,2]
[387179683,1758611436373,-151.0,0.00019178,2]
[387179684,1758611436383,-181.215276,0.00019178,2]
[387179685,1758611436393,-181.215276,0.00019178,2]
[387179686,1758611436403,-480.0,0.00019178,2]
[387179687,1758611436413,-181.215276,0.00019178,2]
[387179688,1758611436423,-480.0,0.00019178,2]
[387179689,1758611436434,-181.215276,0.00019178,2]
[387179690,1758611436444,-181.215276,0.00019178,2]
[387179691,1758611436453,-181.215276,0.00019178,2]
[387179692,1758611436463,-480.0,0.00019178,2]
[387179693,1758611436473,-480.0,0.00019178,2]
[387179694,1758611436482,-181.215276,0.00019178,2]
[387179695,1758611436492,-489.25676738,0.00019178,2]
[387179696,1758611436502,-181.215276,0.00019178,2]
[387179697,1758611436511,-480.0,0.00019178,2]
[387179698,1758611436526,-181.215276,0.00019178,2]
[387179699,1758611436535,-480.0,0.00019178,2]
[387179700,1758611436545,-480.0,0.00019178,2]
[387179701,1758611436555,-151.0,0.00019178,2]
[387179702,1758611436564,-151.0,0.00019178,2]
[387179703,1758611436574,-151.0,0.00019178,2]
[387179704,1758611436584,-480.0,0.00019178,2]
[387179705,1758611436593,-151.0,0.00019178,2]
[387179706,1758611436610,-151.0,0.00019178,2]
[387179707,1758611436628,-480.0,0.00019178,2]
[387179708,1758611436640,-242.807524,0.00019178,2]
[387179709,1758611436654,-480.0,0.00019178,2]
[387179710,1758611436669,-480.0,0.00019178,2]
[387179711,1758611436686,-480.0,0.00019178,2]
[387179712,1758611436700,-498.17746163,0.00019178,2]
[387179713,1758611436716,-480.0,0.00019178,2]
[387179714,1758611436731,-480.0,0.00019178,2]
[387179715,1758611436746,-285.10045172,0.00019178,2]
[387179716,1758611436759,-482.49731461,0.00019178,2]
[387179717,1758611436774,-487.17079076,0.00019178,2]
[387179718,1758611436787,-480.0,0.00019178,2]
[387179719,1758611436798,-480.0,0.00019178,2]
[387179720,1758611436811,-480.0,0.00019178,2]
[387179721,1758611436825,-480.0,0.00019178,2]
[387179722,1758611436839,-480.72605767,0.00019178,2]
[387179723,1758611436853,-318.86686786,0.00019178,2]
[387179725,1758611439067,-161.13313214,0.00019178,2]
[387179726,1758611439078,-501.19,0.00019178,2]
[387179727,1758611439088,-546.42184304,0.00019178,2]
[387179728,1758611439097,-480.0,0.00019178,2]
[387179729,1758611439107,-484.37,0.00019178,2]
[387179730,1758611439117,-480.0,0.00019178,2]
[387179731,1758611439126,-480.0,0.00019178,2]
[387179732,1758611439136,-520.316152,0.00019178,2]
[387179733,1758611439145,-520.316152,0.00019178,2]
[387179734,1758611439155,-480.0,0.00019178,2]
[387179735,1758611439164,-481.57333169,0.00019178,2]
[387179736,1758611439175,-520.316152,0.00019178,2]
[387179737,1758611439184,-480.0,0.00019178,2]
[387179738,1758611439195,-480.0,0.00019178,2]
[387179739,1758611439204,-480.0,0.00019178,2]
[387179740,1758611439213,-466.30498109,0.00019178,2]
[387179741,1758611439223,-151.0,0.00019178,2]
[387179742,1758611439232,-151.0,0.00019178,2]
[387179743,1758611439241,-480.0,0.00019178,2]
[387179744,1758611439251,-152.355995,0.00019178,2]
[387179745,1758611439260,-520.316152,0.00019178,2]
[387179746,1758611439270,-520.316152,0.00019178,2]
[387179747,1758611439279,-520.316152,0.00019178,2]
[387179748,1758611439289,-487.18940377,0.00019178,2]
[387179749,1758611439298,-483.76567979,0.00019178,2]
[387179750,1758611439308,-520.316152,0.00019178,2]
[387179751,1758611439317,-480.0,0.00019178,2]
[387179752,1758611439326,-520.316152,0.00019178,2]
[387179753,1758611439336,-520.316152,0.00019178,2]
[387179754,1758611439346,-480.0,0.00019178,2]
[387179755,1758611439356,-151.0,0.00019178,2]
[387179756,1758611439365,-520.316152,0.00019178,2]
[387179757,1758611439375,-151.0,0.00019178,2]
[387179758,1758611439384,-151.0,0.00019178,2]
[387179759,1758611439394,-520.316152,0.00019178,2]
[387179760,1758611439403,-151.0,0.00019178,2]
[387179761,1758611439412,-151.0,0.00019178,2]
[387179762,1758611439421,-520.316152,0.00019178,2]
[387179763,1758611439432,-151.0,0.00019178,2]
[387179764,1758611439441,-156.230991,0.00019178,2]
[387179765,1758611439450,-151.0,0.00019178,2]
[387179766,1758611439459,-481.58112266,0.00019178,2]
[387179767,1758611439468,-151.340731,0.00019178,2]
[387179768,1758611439478,-480.0,0.00019178,2]
[387179769,1758611439488,-480.0,0.00019178,2]
[387179770,1758611439497,-480.0,0.00019178,2]
[387179771,1758611439506,-480.0,0.00019178,2]
[387179772,1758611439515,-480.0,0.00019178,2]
[387179773,1758611439525,-500.68798729,0.00019178,2]
[387179774,1758611439534,-151.0,0.00019178,2]
[387179775,1758611439544,-151.0,0.00019178,2]
[387179776,1758611439554,-157.535064,0.00019178,2]
[387179777,1758611439563,-480.0,0.00019178,2]
[387179778,1758611439573,-153.04828672,0.00019178,2]
[387179779,1758611439582,-480.0,0.00019178,2]
[387179780,1758611439592,-515.82691004,0.00019178,2]
[387179781,1758611439601,-480.0,0.00019178,2]
[387179782,1758611439609,-49.49802708,0.00019178,2]
[387179783,1758611439664,-225.62940192,0.00019178,2]
[387179784,1758611439675,-275.127429,0.00019178,2]
[387179785,1758611439685,-59.46403076,0.00019178,2]
[387179786,1758611439699,-215.66339824,0.00019178,2]
[387179787,1758611439708,-480.0,0.00019178,2]
[387179788,1758611439718,-275.127429,0.00019178,2]
[387179789,1758611439728,-275.127429,0.00019178,2]
[387179790,1758611439737,-275.127429,0.00019178,2]
[387179791,1758611439748,-480.0,0.00019178,2]
[387179792,1758611439757,-275.127429,0.00019178,2]
[387179793,1758611439767,-480.0,0.00019178,2]
[387179794,1758611439775,-37.29788289,0.00019178,2]
[387179799,1758611442384,-148.36673015,0.00019178,2]
[387179800,1758611442396,-89.46281596,0.00019178,2]
[387179801,1758611442406,-275.127429,0.00019178,2]
[387179802,1758611442415,-275.127429,0.00019178,2]
[387179803,1758611442424,-619.48434725,0.00019178,2]
[387179804,1758611442436,-33.37808732,0.00019178,2]
[387179812,1758611443512,-241.74934168,0.00019178,2]
[387179813,1758611443522,-275.127429,0.00019178,2]
[387179814,1758611443532,-8.7095063,0.00019178,2]
[387179852,1758611455998,450.0,0.00027,120]
[387179854,1758611521853,200.0,0.00027,120]
[387179855,1758611533321,463.0,0.00027,120]
[387179858,1758611740581,-256.91440648,0.00018177,2]
[387179859,1758611743287,-251.61643831,0.00018177,2]
[387179860,1758611745580,-157.46915521,0.00018177,2]
[387179865,1758611836202,-154.13088673,0.0001814,2]
[387179867,1758611838960,-152.11995577,0.0001814,2]
[387179869,1758611868837,322.99737281,0.00017817,2]
[387179876,1758612078435,-2779.2414788,0.00018368,2]
[387179877,1758612078464,-167.41472179,0.000184,2]
[387179878,1758612078580,-2647.47289611,0.0001899,2]
[387179879,1758612078677,-10000.01,0.0001899,2]
[387179880,1758612078812,-10000.01,0.0001899,2]
[387179881,1758612078942,-10000.01,0.0001899,2]
[387179882,1758612079055,-10000.01,0.0001899,2]
[387179883,1758612079163,-10000.01,0.0001899,2]
[387179884,1758612079281,-10000.01,0.0001899,2]
[387179885,1758612079415,-10000.01,0.0001899,2]
[387179886,1758612079574,-10000.01,0.0001899,2]
[387179887,1758612079719,-10000.01,0.0001899,2]
[387179890,1758612308962,-779.75301,0.00018077,2]
[387179891,1758612308990,-194.51146189,0.00018977,2]
[387179892,1758612309020,-906.0309525,0.00018982,2]
[387179893,1758612309050,-1200.0,0.00018989,2]
[387179894,1758612309144,-3839.41915122,0.0001899,2]
[387179915,1758612472483,10000.01,0.00018,2]
[387179916,1758612472509,4721.76810465,0.00018,2]
[387179917,1758612476588,5278.24189535,0.00018,2]
[387179918,1758612476610,3797.6775943,0.00018,2]
[387179923,1758612499472,4564.07376144,0.00018,2]
[387179930,1758612559445,-598.2776247,0.00018977,2]
[387179931,1758612559475,-397.86485209,0.00018977,2]
[387179932,1758612559506,-3513.01795267,0.0001899,2]
[387179933,1758612559540,-397.86485209,0.00018994,2]
[387179934,1758612569279,-500.0,0.00019,2]
[387179935,1758612589910,-824.21808116,0.00019,2]
[387179986,1758612632586,-9515.55176204,0.00019,2]
[387179988,1758612632596,-1110.72097755,0.00019031,2]
[387179990,1758612632605,-13447.73971363,0.00019063,7]
[387179992,1758612632615,-613.27,0.00019068,3]
[387179995,1758612632624,-482.07941926,0.00019075,2]
[387179997,1758612632633,-500.0,0.00019075,2]
[387179999,1758612632643,-500.0,0.00019075,2]
[387180000,1758612632652,-500.0,0.00019075,2]
[387180002,1758612632662,-500.0,0.00019075,2]
[387180003,1758612632671,-500.0,0.00019075,2]
[387180005,1758612632681,-500.0,0.00019075,2]
[387180007,1758612632691,-500.0,0.00019075,2]
[387180008,1758612632700,-500.0,0.00019075,2]
[387180009,1758612632710,-500.0,0.00019075,2]
[387180011,1758612632719,-500.0,0.00019075,2]